{"text_format":"1","workbook":"xlsx","n_sheets":6,"sheets":["Instructions","Application","Terms and Conditions","Ref","Ref 2","Tenant Waiver Form"],"not_rendered":{"charts":0,"images":4,"macros":1,"external_links":0,"defined_names":8,"comments":0,"pivot_tables":0},"unopened":[],"bounds":{"document_bytes":16777216,"sheet_cells":100000,"rows_first":2000,"rows_last":500,"rows_between":2000,"halvings":0,"cell_chars":16384,"cell_head_chars":4096},"cells_cut":0,"cells_raw":0,"read":"whole","date_system":"1900"}

{"sheet":"Instructions","index":0,"n_rows":11,"n_cols":18,"rows_kept":11,"cut":false,"hidden":false,"merged":[[100,2,100,7]]}
[]
[null,"CleanBC Commercial Express"]
[null,"Instructions"]
[]
[]
[]
[]
[]
[]
[]
[null,null,null,null,null,null,null,null,null,null,null,null,null,null,null,null,null," "]

{"sheet":"Application","index":1,"n_rows":133,"n_cols":20,"rows_kept":133,"cut":false,"hidden":false,"merged":[[71,22,71,23],[72,22,72,23],[67,26,72,28],[66,22,66,23],[67,22,67,23],[68,22,68,23],[69,22,69,23],[70,22,70,23],[89,8,89,19],[92,1,92,6],[92,8,92,19],[102,1,102,6],[102,8,102,19],[99,1,99,6],[99,8,99,19],[100,1,100,6],[100,8,100,19],[101,1,101,6],[101,8,101,19],[96,1,96,6],[96,8,96,19],[97,1,97,6],[97,8,97,19],[98,1,98,6],[98,8,98,19],[56,8,56,9],[57,8,57,9],[70,8,70,19],[62,1,62,6],[71,1,71,6],[71,8,71,19],[66,8,66,19],[66,1,66,6],[63,1,63,6],[64,1,64,6],[65,1,65,6],[62,8,62,19],[59,8,59,19],[63,8,63,19],[64,8,64,19],[65,8,65,19],[67,8,67,19],[67,1,67,6],[68,1,68,6],[69,1,69,6],[70,1,70,6],[68,8,68,19],[69,8,69,19],[80,1,80,6],[80,8,80,19],[72,1,72,6],[72,8,72,19],[81,1,81,6],[81,8,81,19],[74,8,74,19],[77,1,77,6],[77,8,77,19],[78,1,78,6],[78,8,78,19],[79,1,79,6],[79,8,79,19],[132,1,132,19],[121,1,124,19],[120,1,120,19],[83,1,83,6],[82,8,82,19],[84,1,84,6],[119,1,119,14],[126,1,126,19],[127,1,130,19],[84,8,84,19],[86,1,86,6],[85,8,85,19],[87,1,87,6],[86,8,86,19],[83,8,83,19],[85,1,85,6],[87,8,87,19],[93,1,93,6],[93,8,93,19],[94,1,94,6],[94,8,94,19],[95,1,95,6],[95,8,95,19],[82,1,82,6],[1,1,3,15],[19,1,19,19],[22,1,22,19],[38,1,38,19],[4,1,4,19],[32,1,32,19],[1,18,3,19],[35,11,35,14],[36,3,36,8],[35,3,35,8],[23,11,23,19],[34,3,34,8],[24,11,24,14],[25,11,25,14],[26,11,26,14],[20,11,20,12],[20,3,20,4],[24,3,24,8],[25,3,25,8],[27,11,27,14],[26,2,26,8],[55,23,55,24],[29,6,29,8],[43,11,43,18],[41,11,41,14],[55,1,55,19],[39,11,39,19],[40,11,40,19],[42,11,42,14],[36,11,36,14],[34,11,34,14],[33,3,33,19],[29,11,29,19],[52,3,52,19],[50,1,50,19],[30,11,30,19],[51,4,51,5],[53,11,53,14],[30,2,30,8],[45,1,45,9],[53,3,53,9],[104,8,104,19],[107,1,107,6],[107,8,107,19],[108,1,108,6],[108,8,108,19],[109,1,109,6],[109,8,109,19],[110,1,110,6],[110,8,110,19],[116,1,116,6],[116,8,116,19],[117,1,117,6],[117,8,117,19],[111,1,111,6],[111,8,111,19],[112,1,112,6],[112,8,112,19],[113,1,113,6],[113,8,113,19],[114,1,114,6],[114,8,114,19],[115,1,115,6],[115,8,115,19]]}
[]
[null,"The CleanBC COMMERCIAL EXPRESS Program is intended to facilitate smaller and replicable fuel switching electrification opportunities across the commercial and institutional building sector in the Province of British Columbia.",null,null,null,null,null,null,null,null,null,null,null,null,null,null,null,null,"Commercial Express Workbook\nVersion 1.0"]
[]
[]
[null,"CleanBC Commercial Express Program Application"]
[]
[]
[]
[]
[]
[]
[]
[]
[]
[]
[]
[]
[]
[]
[]
[null,null,"Revision:",null,null,"Enter 1 if initial version",null,null,null,null,"Date:",null,null,"yyyy-mm-dd"]
[]
[null,"Customer Details"]
[null,null,null,null,null,null,null,null,null,null,"Company Legal Name (To be used on Agreement and for Payments):"]
[null,null,"Company Address:",null,null,null,null,null,null,null,"City:",null,null,null,null,null,null,null,"Postal Code:"]
[null,null,"Primary Contact Name:",null,null,null,null,null,null,null,"Phone:",null,null,null,null,null,null,null,"Ext:"]
[null,"Email:",null,null,null,null,null,null,null,null,"Cell Phone:",null,null,null,null,null,null,null,"Job Title:"]
[null,null,null,null,null,null,null,null,null,null,"If Applicable, Company GST/HST Number (Required to process payment):",null,null,null,null,null,null,null,"GST Exempt:"]
[]
[null,null,null,null,null,"Who is completing this application form:",null,null,null,null,"Name:"]
[null,"Email:",null,null,null,null,null,null,null,null,"Phone:"]
[]
[null,"Primary Contractor / Consultant Details ( if known at time of application)"]
[null,null,"Company Legal Name:"]
[null,null,"Address:",null,null,null,null,null,null,null,"City:",null,null,null,null,null,null,null,"Postal Code:"]
[null,null,"Primary Contact Name:",null,null,null,null,null,null,null,"Role/Title:",null,null,null,null,null,null,null,"Cell Phone:"]
[null,null,"Email:",null,null,null,null,null,null,null,"Phone:",null,null,null,null,null,null,null,"Ext:"]
[]
[null,"Project Contacts"]
[null,null,null,null,null,null,null,null,null,null,"If applicable, enter BCH Key Account Manager's name (or other BCH Rep):"]
[null,null,null,null,null,null,null,null,null,null,"If applicable, enter name of BC Hydro sponsored Energy Manager:"]
[null,null,null,null,null,null,null,null,null,null,"Phone:",null,null,null,null,null,null,null,"Ext:"]
[null,null,null,null,null,null,null,null,null,null,"Cell Phone:"]
[null,null,null,null,null,null,null,null,null,null,"Energy Manager's Email:"]
[]
[null,"Questions for Contractor / Consultant",null,null,null,null,null,null,null,null,null,null,null,null,null,null,null,null,null,"Contractor/Consultant"]
[null,null,null,null,null,null,null,null,null,null,null,null,null,null,null,null,"Registered with BC Hydro's Alliance?"]
[null,null,null,null,null,null,null,null,null,null,null,null,null,null,null,null,"Familiar with CleanBC's Commercial Express Program Guidelines?"]
[null,null,null,null,null,null,null,null,null,null,null,null,null,null,null,null,"Have they consulted with the CleanBC Small Buildings Energy Coach in the preparation of this application?"]
[]
[null,"Site Details"]
[null,null,"Facility/site Address:"]
[null,null,"Building Name: "]
[null,null,"Facility/site Address:",null,null,null,null,null,null,null,"City:",null,null,null,null,null,null,null,"Postal code:"]
[]
[null,"Project Application Questions"]
[null,null,null,null,null,null,"Expected date of purchasing equipment:",null,null,null,"yyyy-mm-dd"]
[null,null,null,null,null,null,"Expected date of completed installation:",null,null,null,"yyyy-mm-dd"]
[]
[null,null,null,null,"Building Type 1:"]
[]
[null,"Questions based on Building Type 1",null,null,null,null,null,null,"Answers:"]
[null,{"$f":"Ref!F17","v":""}]
[null,{"$f":"Ref!F18","v":""},null,null,null,null,null,null,{"$f":"IF(L54=\"\",\"\",L54)","v":""}]
[null,{"$f":"Ref!F19","v":""}]
[null,{"$f":"Ref!F20","v":""}]
[null,{"$f":"Ref!F21","v":""}]
[null,{"$f":"IF(AND(I67=Ref!O16,I60=Ref!O15),Ref!F22,IF(AND(I67=Ref!O17,I60=Ref!O15),Ref!F22,IF(AND(I67=Ref!O18,I60=Ref!O15),Ref!F22,IF(AND(I67=Ref!P16,I60=Ref!P15),Ref!F22,IF(AND(I67=Ref!P17,I60=Ref!P15),Ref!F22,IF(AND(I67=Ref!P18,I60=Ref!P15),Ref!F22,IF(AND(I67=Ref!Q16,I60=Ref!Q15),Ref!F22,IF(AND(I67=Ref!Q17,I60=Ref!Q15),Ref!F22,IF(AND(I67=Ref!R16,I60=Ref!R15),Ref!F22,IF(AND(I67=Ref!R17,I60=Ref!R15),\"6. Not Applicable\",IF(AND(I67=Ref!R18,I60=Ref!R15),Ref!F22,IF(AND(I67=Ref!R19,I60=Ref!R15),\"6. Not Applicable\",IF(AND(I67=Ref!R20,I60=Ref!R15),\"\",IF(AND(I67=Ref!R21,I60=Ref!R15),\"\",IF(AND(I67=Ref!R22,I60=Ref!R15),\"\",IF(AND(I67=Ref!S16,I60=Ref!S15),Ref!F22,IF(AND(I67=Ref!S17,I60=Ref!S15),Ref!F22,IF(AND(I67=Ref!T16,I60=Ref!T15),Ref!F22,IF(AND(I67=Ref!T17,I60=Ref!T15),Ref!F22,IF(AND(I67=Ref!U16,I60=Ref!U15),Ref!F22,IF(AND(I67=Ref!U17,I60=Ref!U15),Ref!F22,IF(AND(I67=Ref!U18,I60=Ref!U15),\"\",\"\"))))))))))))))))))))))","v":""}]
[null,{"$f":"IF(AND(I67=Ref!O16,I60=Ref!O15),Ref!F23,IF(AND(I67=Ref!O17,I60=Ref!O15),Ref!F23,IF(AND(I67=Ref!O18,I60=Ref!O15),Ref!F23,IF(AND(I67=Ref!P16,I60=Ref!P15),Ref!F23,IF(AND(I67=Ref!P17,I60=Ref!P15),Ref!F23,IF(AND(I67=Ref!P18,I60=Ref!P15),Ref!F23,IF(AND(I67=Ref!Q16,I60=Ref!Q15),Ref!F23,IF(AND(I67=Ref!Q17,I60=Ref!Q15),Ref!F23,IF(AND(I67=Ref!R16,I60=Ref!R15),\"7. Not Applicable\",IF(AND(I67=Ref!R17,I60=Ref!R15),Ref!F23,IF(AND(I67=Ref!R18,I60=Ref!R15),\"7. Not Applicable\",IF(AND(I67=Ref!R19,I60=Ref!R15),Ref!F23,IF(AND(I67=Ref!R20,I60=Ref!R15),\"\",IF(AND(I67=Ref!R21,I60=Ref!R15),\"\",IF(AND(I67=Ref!R22,I60=Ref!R15),\"\",IF(AND(I67=Ref!S16,I60=Ref!S15),Ref!F23,IF(AND(I67=Ref!S17,I60=Ref!S15),Ref!F23,IF(AND(I67=Ref!T16,I60=Ref!T15),Ref!F23,IF(AND(I67=Ref!T17,I60=Ref!T15),Ref!F23,IF(AND(I67=Ref!U16,I60=Ref!U15),Ref!F23,IF(AND(I67=Ref!U17,I60=Ref!U15),Ref!F23,IF(AND(I67=Ref!U18,I60=Ref!U15),\"\",\"\"))))))))))))))))))))))","v":""}]
[null,{"$f":"IF(AND(I67=Ref!O16,I60=Ref!O15),Ref!F24,IF(AND(I67=Ref!O17,I60=Ref!O15),Ref!F24,IF(AND(I67=Ref!O18,I60=Ref!O15),\"\",IF(AND(I67=Ref!P16,I60=Ref!P15),Ref!F24,IF(AND(I67=Ref!P17,I60=Ref!P15),Ref!F24,IF(AND(I67=Ref!P18,I60=Ref!P15),\"\",IF(AND(I67=Ref!Q16,I60=Ref!Q15),Ref!F24,IF(AND(I67=Ref!Q17,I60=Ref!Q15),Ref!F24,IF(AND(I67=Ref!R16,I60=Ref!R15),Ref!F24,IF(AND(I67=Ref!R17,I60=Ref!R15),\"8. Not Applicable\",IF(AND(I67=Ref!R18,I60=Ref!R15),Ref!F24,IF(AND(I67=Ref!R19,I60=Ref!R15),\"8. Not Applicable\",IF(AND(I67=Ref!R20,I60=Ref!R15),\"\",IF(AND(I67=Ref!R21,I60=Ref!R15),\"\",IF(AND(I67=Ref!R22,I60=Ref!R15),\"\",IF(AND(I67=Ref!S16,I60=Ref!S15),Ref!F24,IF(AND(I67=Ref!S17,I60=Ref!S15),Ref!F24,IF(AND(I67=Ref!T16,I60=Ref!T15),Ref!F24,IF(AND(I67=Ref!T17,I60=Ref!T15),Ref!F24,IF(AND(I67=Ref!U16,I60=Ref!U15),Ref!F24,IF(AND(I67=Ref!U17,I60=Ref!U15),Ref!F24,IF(AND(I67=Ref!U18,I60=Ref!U15),Ref!F24,\"\"))))))))))))))))))))))","v":""}]
[null,{"$f":"IF(AND(I67=Ref!O16,I60=Ref!O15),Ref!F25,IF(AND(I67=Ref!O17,I60=Ref!O15),Ref!F25,IF(AND(I67=Ref!O18,I60=Ref!O15),\"\",IF(AND(I67=Ref!P16,I60=Ref!P15),Ref!F25,IF(AND(I67=Ref!P17,I60=Ref!P15),Ref!F25,IF(AND(I67=Ref!P18,I60=Ref!P15),\"\",IF(AND(I67=Ref!Q16,I60=Ref!Q15),Ref!F25,IF(AND(I67=Ref!Q17,I60=Ref!Q15),Ref!F25,IF(AND(I67=Ref!R16,I60=Ref!R15),\"9. Not Applicable\",IF(AND(I67=Ref!R17,I60=Ref!R15),Ref!F25,IF(AND(I67=Ref!R18,I60=Ref!R15),\"9. Not Applicable\",IF(AND(I67=Ref!R19,I60=Ref!R15),Ref!F25,IF(AND(I67=Ref!R20,I60=Ref!R15),\"\",IF(AND(I67=Ref!R21,I60=Ref!R15),\"\",IF(AND(I67=Ref!R22,I60=Ref!R15),\"\",IF(AND(I67=Ref!S16,I60=Ref!S15),Ref!F25,IF(AND(I67=Ref!S17,I60=Ref!S15),Ref!F25,IF(AND(I67=Ref!T16,I60=Ref!T15),Ref!F25,IF(AND(I67=Ref!T17,I60=Ref!T15),Ref!F25,IF(AND(I67=Ref!U16,I60=Ref!U15),Ref!F25,IF(AND(I67=Ref!U17,I60=Ref!U15),Ref!F25,IF(AND(I67=Ref!U18,I60=Ref!U15),Ref!F25,\"\"))))))))))))))))))))))","v":""}]
[null,{"$f":"IF(AND(I67=Ref!O16,I60=Ref!O15),Ref!F26,IF(AND(I67=Ref!O17,I60=Ref!O15),Ref!F26,IF(AND(I67=Ref!O18,I60=Ref!O15),Ref!F26,IF(AND(I67=Ref!P16,I60=Ref!P15),Ref!F26,IF(AND(I67=Ref!P17,I60=Ref!P15),Ref!F26,IF(AND(I67=Ref!P18,I60=Ref!P15),Ref!F26,IF(AND(I67=Ref!Q16,I60=Ref!Q15),Ref!F26,IF(AND(I67=Ref!Q17,I60=Ref!Q15),Ref!F26,IF(AND(I67=Ref!R16,I60=Ref!R15),Ref!F26,IF(AND(I67=Ref!R17,I60=Ref!R15),\"10. Not Applicable\",IF(AND(I67=Ref!R18,I60=Ref!R15),Ref!F26,IF(AND(I67=Ref!R19,I60=Ref!R15),\"10. Not Applicable\",IF(AND(I67=Ref!R20,I60=Ref!R15),\"\",IF(AND(I67=Ref!R21,I60=Ref!R15),\"\",IF(AND(I67=Ref!R22,I60=Ref!R15),\"\",IF(AND(I67=Ref!S16,I60=Ref!S15),Ref!F26,IF(AND(I67=Ref!S17,I60=Ref!S15),Ref!F26,IF(AND(I67=Ref!T16,I60=Ref!T15),Ref!F26,IF(AND(I67=Ref!T17,I60=Ref!T15),Ref!F26,IF(AND(I67=Ref!U16,I60=Ref!U15),Ref!F26,IF(AND(I67=Ref!U17,I60=Ref!U15),Ref!F26,IF(AND(I67=Ref!U18,I60=Ref!U15),Ref!F26,\"\"))))))))))))))))))))))","v":""}]
[null,{"$f":"IF(AND(I67=Ref!O16,I60=Ref!O15),Ref!F27,IF(AND(I67=Ref!O17,I60=Ref!O15),Ref!F27,IF(AND(I67=Ref!O18,I60=Ref!O15),Ref!F27,IF(AND(I67=Ref!P16,I60=Ref!P15),Ref!F27,IF(AND(I67=Ref!P17,I60=Ref!P15),Ref!F27,IF(AND(I67=Ref!P18,I60=Ref!P15),Ref!F27,IF(AND(I67=Ref!Q16,I60=Ref!Q15),Ref!F27,IF(AND(I67=Ref!Q17,I60=Ref!Q15),Ref!F27,IF(AND(I67=Ref!R16,I60=Ref!R15),\"\",IF(AND(I67=Ref!R17,I60=Ref!R15),Ref!F27,IF(AND(I67=Ref!R18,I60=Ref!R15),\"\",IF(AND(I67=Ref!R19,I60=Ref!R15),Ref!F27,IF(AND(I67=Ref!R20,I60=Ref!R15),\"\",IF(AND(I67=Ref!R21,I60=Ref!R15),\"\",IF(AND(I67=Ref!R22,I60=Ref!R15),\"\",IF(AND(I67=Ref!S16,I60=Ref!S15),Ref!F27,IF(AND(I67=Ref!S17,I60=Ref!S15),Ref!F27,IF(AND(I67=Ref!T16,I60=Ref!T15),Ref!F27,IF(AND(I67=Ref!T17,I60=Ref!T15),Ref!F27,IF(AND(I67=Ref!U16,I60=Ref!U15),Ref!F27,IF(AND(I67=Ref!U17,I60=Ref!U15),Ref!F27,IF(AND(I67=Ref!U18,I60=Ref!U15),Ref!F27,\"\"))))))))))))))))))))))","v":""}]
[]
[null,null,null,null,null,null,"Building Type 2:"]
[]
[null,"Questions based on Building Type 2",null,null,null,null,null,null,"Answers:"]
[null,{"$f":"Ref!I17","v":""}]
[null,{"$f":"Ref!I18","v":""},null,null,null,null,null,null,{"$f":"I64","v":""}]
[null,{"$f":"Ref!I19","v":""}]
[null,{"$f":"Ref!I20","v":""}]
[null,{"$f":"Ref!I21","v":""}]
[null,{"$f":"IF(AND(I82=Ref!O16,I75=Ref!O15),Ref!I22,IF(AND(I82=Ref!O17,I75=Ref!O15),Ref!I22,IF(AND(I82=Ref!O18,I75=Ref!O15),Ref!I22,IF(AND(I82=Ref!P16,I75=Ref!P15),Ref!I22,IF(AND(I82=Ref!P17,I75=Ref!P15),Ref!I22,IF(AND(I82=Ref!P18,I75=Ref!P15),Ref!I22,IF(AND(I82=Ref!Q16,I75=Ref!Q15),Ref!I22,IF(AND(I82=Ref!Q17,I75=Ref!Q15),Ref!I22,IF(AND(I82=Ref!R16,I75=Ref!R15),Ref!I22,IF(AND(I82=Ref!R17,I75=Ref!R15),\"6. Not Applicable\",IF(AND(I82=Ref!R18,I75=Ref!R15),Ref!I22,IF(AND(I82=Ref!R19,I75=Ref!R15),\"6. Not Applicable\",IF(AND(I82=Ref!R20,I75=Ref!R15),\"\",IF(AND(I82=Ref!R21,I75=Ref!R15),\"\",IF(AND(I82=Ref!R22,I75=Ref!R15),\"\",IF(AND(I82=Ref!S16,I75=Ref!S15),Ref!I22,IF(AND(I82=Ref!S17,I75=Ref!S15),Ref!I22,IF(AND(I82=Ref!T16,I75=Ref!T15),Ref!I22,IF(AND(I82=Ref!T17,I75=Ref!T15),Ref!I22,IF(AND(I82=Ref!U16,I75=Ref!U15),Ref!I22,IF(AND(I82=Ref!U17,I75=Ref!U15),Ref!I22,IF(AND(I82=Ref!U18,I75=Ref!U15),\"\",\"\"))))))))))))))))))))))","v":""}]
[null,{"$f":"IF(AND(I82=Ref!O16,I75=Ref!O15),Ref!I23,IF(AND(I82=Ref!O17,I75=Ref!O15),Ref!I23,IF(AND(I82=Ref!O18,I75=Ref!O15),Ref!I23,IF(AND(I82=Ref!P16,I75=Ref!P15),Ref!I23,IF(AND(I82=Ref!P17,I75=Ref!P15),Ref!I23,IF(AND(I82=Ref!P18,I75=Ref!P15),Ref!I23,IF(AND(I82=Ref!Q16,I75=Ref!Q15),Ref!I23,IF(AND(I82=Ref!Q17,I75=Ref!Q15),Ref!I23,IF(AND(I82=Ref!R16,I75=Ref!R15),\"7. Not Applicable\",IF(AND(I82=Ref!R17,I75=Ref!R15),Ref!I23,IF(AND(I82=Ref!R18,I75=Ref!R15),\"7. Not Applicable\",IF(AND(I82=Ref!R19,I75=Ref!R15),Ref!I23,IF(AND(I82=Ref!R20,I75=Ref!R15),\"\",IF(AND(I82=Ref!R21,I75=Ref!R15),\"\",IF(AND(I82=Ref!R22,I75=Ref!R15),\"\",IF(AND(I82=Ref!S16,I75=Ref!S15),Ref!I23,IF(AND(I82=Ref!S17,I75=Ref!S15),Ref!I23,IF(AND(I82=Ref!T16,I75=Ref!T15),Ref!I23,IF(AND(I82=Ref!T17,I75=Ref!T15),Ref!I23,IF(AND(I82=Ref!U16,I75=Ref!U15),Ref!I23,IF(AND(I82=Ref!U17,I75=Ref!U15),Ref!I23,IF(AND(I82=Ref!U18,I75=Ref!U15),\"\",\"\"))))))))))))))))))))))","v":""}]
[null,{"$f":"IF(AND(I82=Ref!O16,I75=Ref!O15),Ref!I24,IF(AND(I82=Ref!O17,I75=Ref!O15),Ref!I24,IF(AND(I82=Ref!O18,I75=Ref!O15),\"\",IF(AND(I82=Ref!P16,I75=Ref!P15),Ref!I24,IF(AND(I82=Ref!P17,I75=Ref!P15),Ref!I24,IF(AND(I82=Ref!P18,I75=Ref!P15),\"\",IF(AND(I82=Ref!Q16,I75=Ref!Q15),Ref!I24,IF(AND(I82=Ref!Q17,I75=Ref!Q15),Ref!I24,IF(AND(I82=Ref!R16,I75=Ref!R15),Ref!I24,IF(AND(I82=Ref!R17,I75=Ref!R15),\"8. Not Applicable\",IF(AND(I82=Ref!R18,I75=Ref!R15),Ref!I24,IF(AND(I82=Ref!R19,I75=Ref!R15),\"8. Not Applicable\",IF(AND(I82=Ref!R20,I75=Ref!R15),\"\",IF(AND(I82=Ref!R21,I75=Ref!R15),\"\",IF(AND(I82=Ref!R22,I75=Ref!R15),\"\",IF(AND(I82=Ref!S16,I75=Ref!S15),Ref!I24,IF(AND(I82=Ref!S17,I75=Ref!S15),Ref!I24,IF(AND(I82=Ref!T16,I75=Ref!T15),Ref!I24,IF(AND(I82=Ref!T17,I75=Ref!T15),Ref!I24,IF(AND(I82=Ref!U16,I75=Ref!U15),Ref!I24,IF(AND(I82=Ref!U17,I75=Ref!U15),Ref!I24,IF(AND(I82=Ref!U18,I75=Ref!U15),Ref!I24,\"\"))))))))))))))))))))))","v":""}]
[null,{"$f":"IF(AND(I82=Ref!O16,I75=Ref!O15),Ref!I25,IF(AND(I82=Ref!O17,I75=Ref!O15),Ref!I25,IF(AND(I82=Ref!O18,I75=Ref!O15),\"\",IF(AND(I82=Ref!P16,I75=Ref!P15),Ref!I25,IF(AND(I82=Ref!P17,I75=Ref!P15),Ref!I25,IF(AND(I82=Ref!P18,I75=Ref!P15),\"\",IF(AND(I82=Ref!Q16,I75=Ref!Q15),Ref!I25,IF(AND(I82=Ref!Q17,I75=Ref!Q15),Ref!I25,IF(AND(I82=Ref!R16,I75=Ref!R15),\"9. Not Applicable\",IF(AND(I82=Ref!R17,I75=Ref!R15),Ref!I25,IF(AND(I82=Ref!R18,I75=Ref!R15),\"9. Not Applicable\",IF(AND(I82=Ref!R19,I75=Ref!R15),Ref!I25,IF(AND(I82=Ref!R20,I75=Ref!R15),\"\",IF(AND(I82=Ref!R21,I75=Ref!R15),\"\",IF(AND(I82=Ref!R22,I75=Ref!R15),\"\",IF(AND(I82=Ref!S16,I75=Ref!S15),Ref!I25,IF(AND(I82=Ref!S17,I75=Ref!S15),Ref!I25,IF(AND(I82=Ref!T16,I75=Ref!T15),Ref!I25,IF(AND(I82=Ref!T17,I75=Ref!T15),Ref!I25,IF(AND(I82=Ref!U16,I75=Ref!U15),Ref!I25,IF(AND(I82=Ref!U17,I75=Ref!U15),Ref!I25,IF(AND(I82=Ref!U18,I75=Ref!U15),Ref!I25,\"\"))))))))))))))))))))))","v":""}]
[null,{"$f":"IF(AND(I82=Ref!O16,I75=Ref!O15),Ref!I26,IF(AND(I82=Ref!O17,I75=Ref!O15),Ref!I26,IF(AND(I82=Ref!O18,I75=Ref!O15),Ref!I26,IF(AND(I82=Ref!P16,I75=Ref!P15),Ref!I26,IF(AND(I82=Ref!P17,I75=Ref!P15),Ref!I26,IF(AND(I82=Ref!P18,I75=Ref!P15),Ref!I26,IF(AND(I82=Ref!Q16,I75=Ref!Q15),Ref!I26,IF(AND(I82=Ref!Q17,I75=Ref!Q15),Ref!I26,IF(AND(I82=Ref!R16,I75=Ref!R15),Ref!I26,IF(AND(I82=Ref!R17,I75=Ref!R15),\"10. Not Applicable\",IF(AND(I82=Ref!R18,I75=Ref!R15),Ref!I26,IF(AND(I82=Ref!R19,I75=Ref!R15),\"10. Not Applicable\",IF(AND(I82=Ref!R20,I75=Ref!R15),\"\",IF(AND(I82=Ref!R21,I75=Ref!R15),\"\",IF(AND(I82=Ref!R22,I75=Ref!R15),\"\",IF(AND(I82=Ref!S16,I75=Ref!S15),Ref!I26,IF(AND(I82=Ref!S17,I75=Ref!S15),Ref!I26,IF(AND(I82=Ref!T16,I75=Ref!T15),Ref!I25,IF(AND(I82=Ref!T17,I75=Ref!T15),Ref!I26,IF(AND(I82=Ref!U16,I75=Ref!U15),Ref!I26,IF(AND(I82=Ref!U17,I75=Ref!U15),Ref!I26,IF(AND(I82=Ref!U18,I75=Ref!U15),Ref!I26,\"\"))))))))))))))))))))))","v":""}]
[null,{"$f":"IF(AND(I82=Ref!O16,I75=Ref!O15),Ref!I27,IF(AND(I82=Ref!O17,I75=Ref!O15),Ref!I27,IF(AND(I82=Ref!O18,I75=Ref!O15),Ref!I27,IF(AND(I82=Ref!P16,I75=Ref!P15),Ref!I27,IF(AND(I82=Ref!P17,I75=Ref!P15),Ref!I27,IF(AND(I82=Ref!P18,I75=Ref!P15),Ref!I27,IF(AND(I82=Ref!Q16,I75=Ref!Q15),Ref!I27,IF(AND(I82=Ref!Q17,I75=Ref!Q15),Ref!I27,IF(AND(I82=Ref!R16,I75=Ref!R15),\"\",IF(AND(I82=Ref!R17,I75=Ref!R15),Ref!I27,IF(AND(I82=Ref!R18,I75=Ref!R15),\"\",IF(AND(I82=Ref!R19,I75=Ref!R15),Ref!I27,IF(AND(I82=Ref!R20,I75=Ref!R15),\"\",IF(AND(I82=Ref!R21,I75=Ref!R15),\"\",IF(AND(I82=Ref!R22,I75=Ref!R15),\"\",IF(AND(I82=Ref!S16,I75=Ref!S15),Ref!I27,IF(AND(I82=Ref!S17,I75=Ref!S15),Ref!I27,IF(AND(I82=Ref!T16,I75=Ref!T15),Ref!I27,IF(AND(I82=Ref!T17,I75=Ref!T15),Ref!I27,IF(AND(I82=Ref!U16,I75=Ref!U15),Ref!I27,IF(AND(I82=Ref!U17,I75=Ref!U15),Ref!I27,IF(AND(I82=Ref!U18,I75=Ref!U15),Ref!I27,\"\"))))))))))))))))))))))","v":""}]
[]
[null,null,null,null,null,null,"Building Type 3:"]
[]
[null,"Questions based on Building Type 3",null,null,null,null,null,null,"Answers:"]
[null,{"$f":"Ref!W17","v":""}]
[null,{"$f":"Ref!W18","v":""},null,null,null,null,null,null,{"$f":"I79","v":""}]
[null,{"$f":"Ref!W19","v":""}]
[null,{"$f":"Ref!W20","v":""}]
[null,{"$f":"Ref!W21","v":""}]
[null,{"$f":"IF(AND(I97=Ref!O16,I90=Ref!O15),Ref!W22,IF(AND(I97=Ref!O17,I90=Ref!O15),Ref!W22,IF(AND(I97=Ref!O18,I90=Ref!O15),Ref!W22,IF(AND(I97=Ref!P16,I90=Ref!P15),Ref!W22,IF(AND(I97=Ref!P17,I90=Ref!P15),Ref!W22,IF(AND(I97=Ref!P18,I90=Ref!P15),Ref!W22,IF(AND(I97=Ref!Q16,I90=Ref!Q15),Ref!W22,IF(AND(I97=Ref!Q17,I90=Ref!Q15),Ref!W22,IF(AND(I97=Ref!R16,I90=Ref!R15),Ref!W22,IF(AND(I97=Ref!R17,I90=Ref!R15),\"6. Not Applicable\",IF(AND(I97=Ref!R18,I90=Ref!R15),Ref!W22,IF(AND(I97=Ref!R19,I90=Ref!R15),\"6. Not Applicable\",IF(AND(I97=Ref!R20,I90=Ref!R15),\"\",IF(AND(I97=Ref!R21,I90=Ref!R15),\"\",IF(AND(I97=Ref!R22,I90=Ref!R15),\"\",IF(AND(I97=Ref!S16,I90=Ref!S15),Ref!W22,IF(AND(I97=Ref!S17,I90=Ref!S15),Ref!W22,IF(AND(I97=Ref!T16,I90=Ref!T15),Ref!W22,IF(AND(I97=Ref!T17,I90=Ref!T15),Ref!W22,IF(AND(I97=Ref!U16,I90=Ref!U15),Ref!W22,IF(AND(I97=Ref!U17,I90=Ref!U15),Ref!W22,IF(AND(I97=Ref!U18,I90=Ref!U15),\"\",\"\"))))))))))))))))))))))","v":""}]
[null,{"$f":"IF(AND(I97=Ref!O16,I90=Ref!O15),Ref!W23,IF(AND(I97=Ref!O17,I90=Ref!O15),Ref!W23,IF(AND(I97=Ref!O18,I90=Ref!O15),Ref!W23,IF(AND(I97=Ref!P16,I90=Ref!P15),Ref!W23,IF(AND(I97=Ref!P17,I90=Ref!P15),Ref!W23,IF(AND(I97=Ref!P18,I90=Ref!P15),Ref!W23,IF(AND(I97=Ref!Q16,I90=Ref!Q15),Ref!W23,IF(AND(I97=Ref!Q17,I90=Ref!Q15),Ref!W23,IF(AND(I97=Ref!R16,I90=Ref!R15),\"7. Not Applicable\",IF(AND(I97=Ref!R17,I90=Ref!R15),Ref!W23,IF(AND(I97=Ref!R18,I90=Ref!R15),\"7. Not Applicable\",IF(AND(I97=Ref!R19,I90=Ref!R15),Ref!W23,IF(AND(I97=Ref!R20,I90=Ref!R15),\"\",IF(AND(I97=Ref!R21,I90=Ref!R15),\"\",IF(AND(I97=Ref!R22,I90=Ref!R15),\"\",IF(AND(I97=Ref!S16,I90=Ref!S15),Ref!W23,IF(AND(I97=Ref!S17,I90=Ref!S15),Ref!W23,IF(AND(I97=Ref!T16,I90=Ref!T15),Ref!W23,IF(AND(I97=Ref!T17,I90=Ref!T15),Ref!W23,IF(AND(I97=Ref!U16,I90=Ref!U15),Ref!W23,IF(AND(I97=Ref!U17,I90=Ref!U15),Ref!W23,IF(AND(I97=Ref!U18,I90=Ref!U15),\"\",\"\"))))))))))))))))))))))","v":""}]
[null,{"$f":"IF(AND(I97=Ref!O16,I90=Ref!O15),Ref!W24,IF(AND(I97=Ref!O17,I90=Ref!O15),Ref!W24,IF(AND(I97=Ref!O18,I90=Ref!O15),\"\",IF(AND(I97=Ref!P16,I90=Ref!P15),Ref!W24,IF(AND(I97=Ref!P17,I90=Ref!P15),Ref!W24,IF(AND(I97=Ref!P18,I90=Ref!P15),\"\",IF(AND(I97=Ref!Q16,I90=Ref!Q15),Ref!W24,IF(AND(I97=Ref!Q17,I90=Ref!Q15),Ref!W24,IF(AND(I97=Ref!R16,I90=Ref!R15),Ref!W24,IF(AND(I97=Ref!R17,I90=Ref!R15),\"8. Not Applicable\",IF(AND(I97=Ref!R18,I90=Ref!R15),Ref!W24,IF(AND(I97=Ref!R19,I90=Ref!R15),\"8. Not Applicable\",IF(AND(I97=Ref!R20,I90=Ref!R15),\"\",IF(AND(I97=Ref!R21,I90=Ref!R15),\"\",IF(AND(I97=Ref!R22,I90=Ref!R15),\"\",IF(AND(I97=Ref!S16,I90=Ref!S15),Ref!W24,IF(AND(I97=Ref!S17,I90=Ref!S15),Ref!W24,IF(AND(I97=Ref!T16,I90=Ref!T15),Ref!W24,IF(AND(I97=Ref!T17,I90=Ref!T15),Ref!W24,IF(AND(I97=Ref!U16,I90=Ref!U15),Ref!W24,IF(AND(I97=Ref!U17,I90=Ref!U15),Ref!W24,IF(AND(I97=Ref!U18,I90=Ref!U15),Ref!W24,\"\"))))))))))))))))))))))","v":""}]
[null,{"$f":"IF(AND(I97=Ref!O16,I90=Ref!O15),Ref!W25,IF(AND(I97=Ref!O17,I90=Ref!O15),Ref!W25,IF(AND(I97=Ref!O18,I90=Ref!O15),\"\",IF(AND(I97=Ref!P16,I90=Ref!P15),Ref!W25,IF(AND(I97=Ref!P17,I90=Ref!P15),Ref!W25,IF(AND(I97=Ref!P18,I90=Ref!P15),\"\",IF(AND(I97=Ref!Q16,I90=Ref!Q15),Ref!W25,IF(AND(I97=Ref!Q17,I90=Ref!Q15),Ref!W25,IF(AND(I97=Ref!R16,I90=Ref!R15),\"9. Not Applicable\",IF(AND(I97=Ref!R17,I90=Ref!R15),Ref!W25,IF(AND(I97=Ref!R18,I90=Ref!R15),\"9. Not Applicable\",IF(AND(I97=Ref!R19,I90=Ref!R15),Ref!W25,IF(AND(I97=Ref!R20,I90=Ref!R15),\"\",IF(AND(I97=Ref!R21,I90=Ref!R15),\"\",IF(AND(I97=Ref!R22,I90=Ref!R15),\"\",IF(AND(I97=Ref!S16,I90=Ref!S15),Ref!W25,IF(AND(I97=Ref!S17,I90=Ref!S15),Ref!W25,IF(AND(I97=Ref!T16,I90=Ref!T15),Ref!W25,IF(AND(I97=Ref!T17,I90=Ref!T15),Ref!W25,IF(AND(I97=Ref!U16,I90=Ref!U15),Ref!W25,IF(AND(I97=Ref!U17,I90=Ref!U15),Ref!W25,IF(AND(I97=Ref!U18,I90=Ref!U15),Ref!W25,\"\"))))))))))))))))))))))","v":""}]
[null,{"$f":"IF(AND(I97=Ref!O16,I90=Ref!O15),Ref!W26,IF(AND(I97=Ref!O17,I90=Ref!O15),Ref!W26,IF(AND(I97=Ref!O18,I90=Ref!O15),Ref!W26,IF(AND(I97=Ref!P16,I90=Ref!P15),Ref!W26,IF(AND(I97=Ref!P17,I90=Ref!P15),Ref!W26,IF(AND(I97=Ref!P18,I90=Ref!P15),Ref!W26,IF(AND(I97=Ref!Q16,I90=Ref!Q15),Ref!W26,IF(AND(I97=Ref!Q17,I90=Ref!Q15),Ref!W26,IF(AND(I97=Ref!R16,I90=Ref!R15),Ref!W26,IF(AND(I97=Ref!R17,I90=Ref!R15),\"10. Not Applicable\",IF(AND(I97=Ref!R18,I90=Ref!R15),Ref!W26,IF(AND(I97=Ref!R19,I90=Ref!R15),\"10. Not Applicable\",IF(AND(I97=Ref!R20,I90=Ref!R15),\"\",IF(AND(I97=Ref!R21,I90=Ref!R15),\"\",IF(AND(I97=Ref!R22,I90=Ref!R15),\"\",IF(AND(I97=Ref!S16,I90=Ref!S15),Ref!W26,IF(AND(I97=Ref!S17,I90=Ref!S15),Ref!W26,IF(AND(I97=Ref!T16,I90=Ref!T15),Ref!W26,IF(AND(I97=Ref!T17,I90=Ref!T15),Ref!W26,IF(AND(I97=Ref!U16,I90=Ref!U15),Ref!W26,IF(AND(I97=Ref!U17,I90=Ref!U15),Ref!W26,IF(AND(I97=Ref!U18,I90=Ref!U15),Ref!W26,\"\"))))))))))))))))))))))","v":""}]
[null,{"$f":"IF(AND(I97=Ref!O16,I90=Ref!O15),Ref!W27,IF(AND(I97=Ref!O17,I90=Ref!O15),Ref!W27,IF(AND(I97=Ref!O18,I90=Ref!O15),Ref!W27,IF(AND(I97=Ref!P16,I90=Ref!P15),Ref!W27,IF(AND(I97=Ref!P17,I90=Ref!P15),Ref!W27,IF(AND(I97=Ref!P18,I90=Ref!P15),Ref!W27,IF(AND(I97=Ref!Q16,I90=Ref!Q15),Ref!W27,IF(AND(I97=Ref!Q17,I90=Ref!Q15),Ref!W27,IF(AND(I97=Ref!R16,I90=Ref!R15),\"\",IF(AND(I97=Ref!R17,I90=Ref!R15),Ref!W27,IF(AND(I97=Ref!R18,I90=Ref!R15),\"\",IF(AND(I97=Ref!R19,I90=Ref!R15),Ref!W27,IF(AND(I97=Ref!R20,I90=Ref!R15),\"\",IF(AND(I97=Ref!R21,I90=Ref!R15),\"\",IF(AND(I97=Ref!R22,I90=Ref!R15),\"\",IF(AND(I97=Ref!S16,I90=Ref!S15),Ref!W27,IF(AND(I97=Ref!S17,I90=Ref!S15),Ref!W27,IF(AND(I97=Ref!T16,I90=Ref!T15),Ref!W27,IF(AND(I97=Ref!T17,I90=Ref!T15),Ref!W27,IF(AND(I97=Ref!U16,I90=Ref!U15),Ref!W27,IF(AND(I97=Ref!U17,I90=Ref!U15),Ref!W27,IF(AND(I97=Ref!U18,I90=Ref!U15),Ref!W27,\"\"))))))))))))))))))))))","v":""}]
[]
[null,null,null,null,null,null,"Building Type 4:"]
[]
[null,"Questions based on Building Type 4",null,null,null,null,null,null,"Answers:"]
[null,{"$f":"Ref!W44","v":""}]
[null,{"$f":"Ref!W45","v":""},null,null,null,null,null,null,{"$f":"I94","v":""}]
[null,{"$f":"Ref!W46","v":""}]
[null,{"$f":"Ref!W47","v":""}]
[null,{"$f":"Ref!W48","v":""}]
[null,{"$f":"IF(AND(I112=Ref!O16,I105=Ref!O15),Ref!W49,IF(AND(I112=Ref!O17,I105=Ref!O15),Ref!W49,IF(AND(I112=Ref!O18,I105=Ref!O15),Ref!W49,IF(AND(I112=Ref!P16,I105=Ref!P15),Ref!W49,IF(AND(I112=Ref!P17,I105=Ref!P15),Ref!W49,IF(AND(I112=Ref!P18,I105=Ref!P15),Ref!W49,IF(AND(I112=Ref!Q16,I105=Ref!Q15),Ref!W49,IF(AND(I112=Ref!Q17,I105=Ref!Q15),Ref!W49,IF(AND(I112=Ref!R16,I105=Ref!R15),Ref!W49,IF(AND(I112=Ref!R17,I105=Ref!R15),\"6. Not Applicable\",IF(AND(I112=Ref!R18,I105=Ref!R15),Ref!W49,IF(AND(I112=Ref!R19,I105=Ref!R15),\"6. Not Applicable\",IF(AND(I112=Ref!R20,I105=Ref!R15),\"\",IF(AND(I112=Ref!R21,I105=Ref!R15),\"\",IF(AND(I112=Ref!R22,I105=Ref!R15),\"\",IF(AND(I112=Ref!S16,I105=Ref!S15),Ref!W49,IF(AND(I112=Ref!S17,I105=Ref!S15),Ref!W49,IF(AND(I112=Ref!T16,I105=Ref!T15),Ref!W49,IF(AND(I112=Ref!T17,I105=Ref!T15),Ref!W49,IF(AND(I112=Ref!U16,I105=Ref!U15),Ref!W49,IF(AND(I112=Ref!U17,I105=Ref!U15),Ref!W49,IF(AND(I112=Ref!U18,I105=Ref!U15),\"\",\"\"))))))))))))))))))))))","v":""}]
[null,{"$f":"IF(AND(I112=Ref!O16,I105=Ref!O15),Ref!W50,IF(AND(I112=Ref!O17,I105=Ref!O15),Ref!W50,IF(AND(I112=Ref!O18,I105=Ref!O15),Ref!W50,IF(AND(I112=Ref!P16,I105=Ref!P15),Ref!W50,IF(AND(I112=Ref!P17,I105=Ref!P15),Ref!W50,IF(AND(I112=Ref!P18,I105=Ref!P15),Ref!W50,IF(AND(I112=Ref!Q16,I105=Ref!Q15),Ref!W50,IF(AND(I112=Ref!Q17,I105=Ref!Q15),Ref!W50,IF(AND(I112=Ref!R16,I105=Ref!R15),\"7. Not Applicable\",IF(AND(I112=Ref!R17,I105=Ref!R15),Ref!W50,IF(AND(I112=Ref!R18,I105=Ref!R15),\"7. Not Applicable\",IF(AND(I112=Ref!R19,I105=Ref!R15),Ref!W50,IF(AND(I112=Ref!R20,I105=Ref!R15),\"\",IF(AND(I112=Ref!R21,I105=Ref!R15),\"\",IF(AND(I112=Ref!R22,I105=Ref!R15),\"\",IF(AND(I112=Ref!S16,I105=Ref!S15),Ref!W50,IF(AND(I112=Ref!S17,I105=Ref!S15),Ref!W50,IF(AND(I112=Ref!T16,I105=Ref!T15),Ref!W50,IF(AND(I112=Ref!T17,I105=Ref!T15),Ref!W50,IF(AND(I112=Ref!U16,I105=Ref!U15),Ref!W50,IF(AND(I112=Ref!U17,I105=Ref!U15),Ref!W50,IF(AND(I112=Ref!U18,I105=Ref!U15),\"\",\"\"))))))))))))))))))))))","v":""}]
[null,{"$f":"IF(AND(I112=Ref!O16,I105=Ref!O15),Ref!W51,IF(AND(I112=Ref!O17,I105=Ref!O15),Ref!W51,IF(AND(I112=Ref!O18,I105=Ref!O15),\"\",IF(AND(I112=Ref!P16,I105=Ref!P15),Ref!W51,IF(AND(I112=Ref!P17,I105=Ref!P15),Ref!W51,IF(AND(I112=Ref!P18,I105=Ref!P15),\"\",IF(AND(I112=Ref!Q16,I105=Ref!Q15),Ref!W51,IF(AND(I112=Ref!Q17,I105=Ref!Q15),Ref!W51,IF(AND(I112=Ref!R16,I105=Ref!R15),Ref!W51,IF(AND(I112=Ref!R17,I105=Ref!R15),\"8. Not Applicable\",IF(AND(I112=Ref!R18,I105=Ref!R15),Ref!W51,IF(AND(I112=Ref!R19,I105=Ref!R15),\"8. Not Applicable\",IF(AND(I112=Ref!R20,I105=Ref!R15),\"\",IF(AND(I112=Ref!R21,I105=Ref!R15),\"\",IF(AND(I112=Ref!R22,I105=Ref!R15),\"\",IF(AND(I112=Ref!S16,I105=Ref!S15),Ref!W51,IF(AND(I112=Ref!S17,I105=Ref!S15),Ref!W51,IF(AND(I112=Ref!T16,I105=Ref!T15),Ref!W51,IF(AND(I112=Ref!T17,I105=Ref!T15),Ref!W51,IF(AND(I112=Ref!U16,I105=Ref!U15),Ref!W51,IF(AND(I112=Ref!U17,I105=Ref!U15),Ref!W51,IF(AND(I112=Ref!U18,I105=Ref!U15),Ref!W51,\"\"))))))))))))))))))))))","v":""}]
[null,{"$f":"IF(AND(I112=Ref!O16,I105=Ref!O15),Ref!W52,IF(AND(I112=Ref!O17,I105=Ref!O15),Ref!W52,IF(AND(I112=Ref!O18,I105=Ref!O15),\"\",IF(AND(I112=Ref!P16,I105=Ref!P15),Ref!W52,IF(AND(I112=Ref!P17,I105=Ref!P15),Ref!W52,IF(AND(I112=Ref!P18,I105=Ref!P15),\"\",IF(AND(I112=Ref!Q16,I105=Ref!Q15),Ref!W52,IF(AND(I112=Ref!Q17,I105=Ref!Q15),Ref!W52,IF(AND(I112=Ref!R16,I105=Ref!R15),\"9. Not Applicable\",IF(AND(I112=Ref!R17,I105=Ref!R15),Ref!W52,IF(AND(I112=Ref!R18,I105=Ref!R15),\"9. Not Applicable\",IF(AND(I112=Ref!R19,I105=Ref!R15),Ref!W52,IF(AND(I112=Ref!R20,I105=Ref!R15),\"\",IF(AND(I112=Ref!R21,I105=Ref!R15),\"\",IF(AND(I112=Ref!R22,I105=Ref!R15),\"\",IF(AND(I112=Ref!S16,I105=Ref!S15),Ref!W52,IF(AND(I112=Ref!S17,I105=Ref!S15),Ref!W52,IF(AND(I112=Ref!T16,I105=Ref!T15),Ref!W52,IF(AND(I112=Ref!T17,I105=Ref!T15),Ref!W52,IF(AND(I112=Ref!U16,I105=Ref!U15),Ref!W52,IF(AND(I112=Ref!U17,I105=Ref!U15),Ref!W52,IF(AND(I112=Ref!U18,I105=Ref!U15),Ref!W52,\"\"))))))))))))))))))))))","v":""}]
[null,{"$f":"IF(AND(I112=Ref!O16,I105=Ref!O15),Ref!W53,IF(AND(I112=Ref!O17,I105=Ref!O15),Ref!W53,IF(AND(I112=Ref!O18,I105=Ref!O15),Ref!W53,IF(AND(I112=Ref!P16,I105=Ref!P15),Ref!W53,IF(AND(I112=Ref!P17,I105=Ref!P15),Ref!W53,IF(AND(I112=Ref!P18,I105=Ref!P15),Ref!W53,IF(AND(I112=Ref!Q16,I105=Ref!Q15),Ref!W53,IF(AND(I112=Ref!Q17,I105=Ref!Q15),Ref!W53,IF(AND(I112=Ref!R16,I105=Ref!R15),Ref!W53,IF(AND(I112=Ref!R17,I105=Ref!R15),\"10. Not Applicable\",IF(AND(I112=Ref!R18,I105=Ref!R15),Ref!W53,IF(AND(I112=Ref!R19,I105=Ref!R15),\"10. Not Applicable\",IF(AND(I112=Ref!R20,I105=Ref!R15),\"\",IF(AND(I112=Ref!R21,I105=Ref!R15),\"\",IF(AND(I112=Ref!R22,I105=Ref!R15),\"\",IF(AND(I112=Ref!S16,I105=Ref!S15),Ref!W53,IF(AND(I112=Ref!S17,I105=Ref!S15),Ref!W53,IF(AND(I112=Ref!T16,I105=Ref!T15),Ref!W53,IF(AND(I112=Ref!T17,I105=Ref!T15),Ref!W53,IF(AND(I112=Ref!U16,I105=Ref!U15),Ref!W53,IF(AND(I112=Ref!U17,I105=Ref!U15),Ref!W53,IF(AND(I112=Ref!U18,I105=Ref!U15),Ref!W53,\"\"))))))))))))))))))))))","v":""}]
[null,{"$f":"IF(AND(I112=Ref!O16,I105=Ref!O15),Ref!W54,IF(AND(I112=Ref!O17,I105=Ref!O15),Ref!W54,IF(AND(I112=Ref!O18,I105=Ref!O15),Ref!W54,IF(AND(I112=Ref!P16,I105=Ref!P15),Ref!W54,IF(AND(I112=Ref!P17,I105=Ref!P15),Ref!W54,IF(AND(I112=Ref!P18,I105=Ref!P15),Ref!W54,IF(AND(I112=Ref!Q16,I105=Ref!Q15),Ref!W54,IF(AND(I112=Ref!Q17,I105=Ref!Q15),Ref!W54,IF(AND(I112=Ref!R16,I105=Ref!R15),\"\",IF(AND(I112=Ref!R17,I105=Ref!R15),Ref!W54,IF(AND(I112=Ref!R18,I105=Ref!R15),\"\",IF(AND(I112=Ref!R19,I105=Ref!R15),Ref!W54,IF(AND(I112=Ref!R20,I105=Ref!R15),\"\",IF(AND(I112=Ref!R21,I105=Ref!R15),\"\",IF(AND(I112=Ref!R22,I105=Ref!R15),\"\",IF(AND(I112=Ref!S16,I105=Ref!S15),Ref!W54,IF(AND(I112=Ref!S17,I105=Ref!S15),Ref!W54,IF(AND(I112=Ref!T16,I105=Ref!T15),Ref!W54,IF(AND(I112=Ref!T17,I105=Ref!T15),Ref!W54,IF(AND(I112=Ref!U16,I105=Ref!U15),Ref!W54,IF(AND(I112=Ref!U17,I105=Ref!U15),Ref!W54,IF(AND(I112=Ref!U18,I105=Ref!U15),Ref!W54,\"\"))))))))))))))))))))))","v":""}]
[]
[null,"Electrification equipment description"]
[null,"Provide a brief description of the existing end of life fossil fuel equipment"]
[]
[]
[]
[]
[]
[null,"Provide a brief description of the proposed electrification equipment"]
[]
[]
[]
[]
[]
[null,"Please Read and Sign the Terms and Conditions (Terms and Conditions tab)"]

{"sheet":"Terms and Conditions","index":2,"n_rows":192,"n_cols":10,"rows_kept":192,"cut":false,"hidden":false,"merged":[[191,2,191,9],[186,5,186,7],[186,9,186,12],[180,1,180,13],[183,1,183,7],[183,8,183,10]]}
[]
[]
[]
[]
[]
[]
[]
[]
[]
[]
[]
[]
[]
[]
[]
[]
[]
[]
[]
[]
[]
[]
[]
[]
[]
[]
[]
[]
[]
[]
[]
[]
[]
[]
[]
[]
[]
[]
[]
[]
[]
[]
[]
[]
[]
[]
[]
[]
[]
[]
[]
[]
[]
[]
[]
[]
[]
[]
[]
[]
[]
[]
[]
[]
[]
[]
[]
[]
[]
[]
[]
[]
[]
[]
[]
[]
[]
[]
[]
[]
[]
[]
[]
[]
[]
[]
[]
[]
[]
[]
[]
[]
[]
[]
[]
[]
[]
[]
[]
[]
[]
[]
[]
[]
[]
[]
[]
[]
[]
[]
[]
[]
[]
[]
[]
[]
[]
[]
[]
[]
[]
[]
[]
[]
[]
[]
[]
[]
[]
[]
[]
[]
[]
[]
[]
[]
[]
[]
[]
[]
[]
[]
[]
[]
[]
[]
[]
[]
[]
[]
[]
[]
[]
[]
[]
[]
[]
[]
[]
[]
[]
[]
[]
[]
[]
[]
[]
[]
[]
[]
[]
[]
[]
[]
[]
[]
[]
[]
[]
[]
[]
[null,"Applicant certification:"]
[]
[null,"Signatory for the Terms and Conditions above is:"]
[]
[]
[null,null,null,null,"Legal Name of Applicant:",null,null,null,"Date:"]
[]
[]
[null,null,null,null,null,null,null,null,null,"I have read  and agree to the Terms and Conditions as listed above:"]
[]
[null,null,{"$f":"IF(Ref!F33=TRUE,\"Thank you\",\"\")","v":""}]

{"sheet":"Ref","index":3,"n_rows":85,"n_cols":24,"rows_kept":85,"cut":false,"hidden":true,"merged":[]}
[]
[null,"Building Type","Project Application Questions","#"]
[null,"Small Office","1. BC Hydro Rate",1]
[null,"Small Office","2. Building Location",2,null,"Building Type 1",null,null,"Building Type 2",null,null,null,null,null,null,null,null,null,null,null,null,null,"Building Type 3"]
[null,"Small Office","3. Current Building Heating Source & Rate",3]
[null,"Small Office","4. Building Air-Conditioned Area (m²)",4,null,"Small Office",null,null,"Small Office",null,null,null,null,null,null,null,null,null,null,null,null,null,"Small Office"]
[null,"Small Office","5. Electrification Measure (EM) to be Installed",5,null,"Strip Mall Retail",null,null,"Strip Mall Retail",null,null,null,null,null,null,null,null,null,null,null,null,null,"Strip Mall Retail"]
[null,"Small Office","6. Occupancy Hours ",6,null,"Warehouse",null,null,"Warehouse",null,null,null,null,null,null,null,null,null,null,null,null,null,"Warehouse"]
[null,"Small Office","7. Building Age",7,null,"Restaurant-Food Service",null,null,"Restaurant-Food Service",null,null,null,null,null,null,null,null,null,null,null,null,null,"Restaurant-Food Service"]
[null,"Small Office","8. Total number of existing gas RTU units",8,null,"Multi-Unit Residential Building",null,null,"Multi-Unit Residential Building",null,null,null,null,"Building Type 1:","=IF(I60=Ref!O56,Ref!O57:O59,IF(I60=Ref!P56,Ref!P57:P59,IF(I60=Ref!Q56,Ref!Q57:Q58,IF(I60=Ref!R56,Ref!R57:R63,IF(I60=Ref!S56,Ref!S57:S58,IF(I60=Ref!T56,Ref!T57:T59,IF(I60=Ref!U56,Ref!U57:U58,\"\")))))))",null,null,null,null,null,null,null,"Multi-Unit Residential Building"]
[null,"Small Office","9. Number of existing gas RTU to be replaced",9,null,"School Gymnasiums",{"$f":"COUNTIF($B$3:$B$60,$F$14)","v":0},null,"School Gymnasiums",{"$f":"COUNTIF($B$3:$B$60,$I$14)","v":0},null,null,null,"Building Type 2:","=IF(I75=Ref!O56,Ref!O57:O59,IF(I75=Ref!P56,Ref!P57:P59,IF(I75=Ref!Q56,Ref!Q57:Q58,IF(I75=Ref!R56,Ref!R57:R63,IF(I75=Ref!S56,Ref!S57:S58,IF(I75=Ref!T56,Ref!T57:T59,IF(I75=Ref!U56,Ref!U57:U58,\"\")))))))",null,null,null,null,null,null,null,"School Gymnasiums",{"$f":"COUNTIF($B$3:$B$60,$W$14)","v":0}]
[null,"Strip Mall Retail","1. BC Hydro Rate",1,null,"Stand Alone Retail",null,null,"Stand Alone Retail",null,null,null,null,"Building Type 3:","=IF(I90=Ref!O56,Ref!O57:O59,IF(I90=Ref!P56,Ref!P57:P59,IF(I90=Ref!Q56,Ref!Q57:Q58,IF(I90=Ref!R56,Ref!R57:R63,IF(I90=Ref!S56,Ref!S57:S58,IF(I90=Ref!T56,Ref!T57:T59,IF(I90=Ref!U56,Ref!U57:U58,\"\")))))))",null,null,null,null,null,null,null,"Stand Alone Retail"]
[null,"Strip Mall Retail","2. Building Location",2,null,null,null,null,null,null,null,null,null,"Building Type 4: ","=IF(I105=Ref!O56,Ref!O57:O59,IF(I105=Ref!P56,Ref!P57:P59,IF(I105=Ref!Q56,Ref!Q57:Q58,IF(I105=Ref!R56,Ref!R57:R63,IF(I105=Ref!S56,Ref!S57:S58,IF(I105=Ref!T56,Ref!T57:T59,IF(I105=Ref!U56,Ref!U57:U58,\"\")))))))"]
[null,"Strip Mall Retail","3. Current Building Heating Source & Rate",3,null,{"$f":"Application!I60","v":0},null,null,{"$f":"Application!I75","v":0},null,null,null,{"$f":"COUNTA(OFFSET($O$15,1,MATCH($L16,$O$15:$U$15,0)-1,10))","v":7},null,"5. Electrification Measure",null,null,null,null,null,null,null,{"$f":"Application!I90","v":0}]
[null,"Strip Mall Retail","4. Building Air-Conditioned Area (m²)",4,null,null,null,null,null,null,null,"Building Type","ECMs",null,"Small Office","Strip Mall Retail","Warehouse","Restaurant-Food Service","Multi-Unit Residential Building","School Gymnasiums","Stand Alone Retail"]
[null,"Strip Mall Retail","5. Electrification Measure (EM) to be Installed",5,null,"Results",null,null,"Results",null,null,"Restaurant-Food Service","Rooftop Air-to-Air Heat Pump Make Up Air Unit with Electric Backup",null,"Rooftop Air-to-Air Heat Pump Mixed Air Unit with Gas Backup","Rooftop Air-to-Air Heat Pump Mixed Air Unit with Gas Backup","Rooftop Air-to-Air Heat Pump Mixed Air Unit with Gas Backup","Rooftop Air-to-Air Heat Pump Mixed Air Unit with Gas Backup","Rooftop Air-to-Air Heat Pump Make Up Air Unit with Gas Backup","Rooftop Air-to-Air Heat Pump Mixed Air Unit with Gas Backup","Rooftop Air-to-Air Heat Pump Mixed Air Unit with Gas Backup",null,"Results"]
[null,"Strip Mall Retail","6. Occupancy Hours ",6,null,{"$f":"IF(ROWS($F$20:F20)<=$G$11,INDEX($C$3:$C$60,_xlfn.AGGREGATE(15,3,($B$3:$B$60=$F$14)/($B$3:$B$60=$F$14)*(ROW($B$3:$B$60)-ROW($B$2)),ROWS($F$20:F20))),\"\")","v":""},null,null,{"$f":"IF(ROWS($I$20:I20)<=$J$11,INDEX($C$3:$C$60,_xlfn.AGGREGATE(15,3,($B$3:$B$60=$I$14)/($B$3:$B$60=$I$14)*(ROW($B$3:$B$60)-ROW($B$2)),ROWS($I$20:I20))),\"\")","v":""},null,null,null,null,null,"Rooftop Air-to-Air Heat Pump Mixed Air Unit with Electric Backup","Rooftop Air-to-Air Heat Pump Mixed Air Unit with Electric Backup","Rooftop Air-to-Air Heat Pump Mixed Air Unit with Electric Backup","Rooftop Air-to-Air Heat Pump Make Up Air Unit with Gas Backup","Rooftop Air-to-Air Heat Pump Make Up Air Unit with Electric Backup","Rooftop Air-to-Air Heat Pump Mixed Air Unit with Gas Backup and High-efficiency (>75%) HRV","Rooftop Air-to-Air Heat Pump Mixed Air Unit with Electric Backup",null,{"$f":"IF(ROWS($W$20:W20)<=$X$11,INDEX($C$3:$C$60,_xlfn.AGGREGATE(15,3,($B$3:$B$60=$W$14)/($B$3:$B$60=$W$14)*(ROW($B$3:$B$60)-ROW($B$2)),ROWS($W$20:W20))),\"\")","v":""}]
[null,"Strip Mall Retail","7. Building Age",7,null,{"$f":"IF(ROWS($F$20:F21)<=$G$11,INDEX($C$3:$C$60,_xlfn.AGGREGATE(15,3,($B$3:$B$60=$F$14)/($B$3:$B$60=$F$14)*(ROW($B$3:$B$60)-ROW($B$2)),ROWS($F$20:F21))),\"\")","v":""},null,null,{"$f":"IF(ROWS($I$20:I21)<=$J$11,INDEX($C$3:$C$60,_xlfn.AGGREGATE(15,3,($B$3:$B$60=$I$14)/($B$3:$B$60=$I$14)*(ROW($B$3:$B$60)-ROW($B$2)),ROWS($I$20:I21))),\"\")","v":""},null,null,null,null,null,"Air Source VRF Distributed Heat Pumps with High-efficiency (>75%) HRV","Air-to-Air Heat Pump (ductless or mini-split) with High-efficiency (>75%) HRV",null,"Rooftop Air-to-Air Heat Pump Mixed Air Unit with Electric Backup",null,null,"Air Source VRF Distributed Heat Pumps with High-efficiency (>75%) HRV",null,{"$f":"IF(ROWS($W$20:W21)<=$X$11,INDEX($C$3:$C$60,_xlfn.AGGREGATE(15,3,($B$3:$B$60=$W$14)/($B$3:$B$60=$W$14)*(ROW($B$3:$B$60)-ROW($B$2)),ROWS($W$20:W21))),\"\")","v":""}]
[null,"Strip Mall Retail","8. Total number of existing gas RTU units",8,null,{"$f":"IF(ROWS($F$20:F22)<=$G$11,INDEX($C$3:$C$60,_xlfn.AGGREGATE(15,3,($B$3:$B$60=$F$14)/($B$3:$B$60=$F$14)*(ROW($B$3:$B$60)-ROW($B$2)),ROWS($F$20:F22))),\"\")","v":""},null,null,{"$f":"IF(ROWS($I$20:I22)<=$J$11,INDEX($C$3:$C$60,_xlfn.AGGREGATE(15,3,($B$3:$B$60=$I$14)/($B$3:$B$60=$I$14)*(ROW($B$3:$B$60)-ROW($B$2)),ROWS($I$20:I22))),\"\")","v":""},null,null,null,null,null,null,null,null,"Rooftop Air-to-Air Heat Pump Make Up Air Unit with Electric Backup",null,null,null,null,{"$f":"IF(ROWS($W$20:W22)<=$X$11,INDEX($C$3:$C$60,_xlfn.AGGREGATE(15,3,($B$3:$B$60=$W$14)/($B$3:$B$60=$W$14)*(ROW($B$3:$B$60)-ROW($B$2)),ROWS($W$20:W22))),\"\")","v":""}]
[null,"Strip Mall Retail","9. Number of existing gas RTU to be replaced",9,null,{"$f":"IF(ROWS($F$20:F23)<=$G$11,INDEX($C$3:$C$60,_xlfn.AGGREGATE(15,3,($B$3:$B$60=$F$14)/($B$3:$B$60=$F$14)*(ROW($B$3:$B$60)-ROW($B$2)),ROWS($F$20:F23))),\"\")","v":""},null,null,{"$f":"IF(ROWS($I$20:I23)<=$J$11,INDEX($C$3:$C$60,_xlfn.AGGREGATE(15,3,($B$3:$B$60=$I$14)/($B$3:$B$60=$I$14)*(ROW($B$3:$B$60)-ROW($B$2)),ROWS($I$20:I23))),\"\")","v":""},null,null,null,null,null,null,null,null,"Air-to-Water CO2 Heat Pump Water Heater",null,null,null,null,{"$f":"IF(ROWS($W$20:W23)<=$X$11,INDEX($C$3:$C$60,_xlfn.AGGREGATE(15,3,($B$3:$B$60=$W$14)/($B$3:$B$60=$W$14)*(ROW($B$3:$B$60)-ROW($B$2)),ROWS($W$20:W23))),\"\")","v":""}]
[null,"Warehouse","1. BC Hydro Rate",1,null,{"$f":"IF(ROWS($F$20:F24)<=$G$11,INDEX($C$3:$C$60,_xlfn.AGGREGATE(15,3,($B$3:$B$60=$F$14)/($B$3:$B$60=$F$14)*(ROW($B$3:$B$60)-ROW($B$2)),ROWS($F$20:F24))),\"\")","v":""},null,null,{"$f":"IF(ROWS($I$20:I24)<=$J$11,INDEX($C$3:$C$60,_xlfn.AGGREGATE(15,3,($B$3:$B$60=$I$14)/($B$3:$B$60=$I$14)*(ROW($B$3:$B$60)-ROW($B$2)),ROWS($I$20:I24))),\"\")","v":""},null,null,null,null,null,null,null,null,"Sewage Heat Recovery Heat Pump",null,null,null,null,{"$f":"IF(ROWS($W$20:W24)<=$X$11,INDEX($C$3:$C$60,_xlfn.AGGREGATE(15,3,($B$3:$B$60=$W$14)/($B$3:$B$60=$W$14)*(ROW($B$3:$B$60)-ROW($B$2)),ROWS($W$20:W24))),\"\")","v":""}]
[null,"Warehouse","2. Building Location",2,null,{"$f":"IF(ROWS($F$20:F25)<=$G$11,INDEX($C$3:$C$60,_xlfn.AGGREGATE(15,3,($B$3:$B$60=$F$14)/($B$3:$B$60=$F$14)*(ROW($B$3:$B$60)-ROW($B$2)),ROWS($F$20:F25))),\"\")","v":""},null,null,{"$f":"IF(ROWS($I$20:I25)<=$J$11,INDEX($C$3:$C$60,_xlfn.AGGREGATE(15,3,($B$3:$B$60=$I$14)/($B$3:$B$60=$I$14)*(ROW($B$3:$B$60)-ROW($B$2)),ROWS($I$20:I25))),\"\")","v":""},null,null,null,null,null,null,null,null,"Electrify Food Preparation Equipment",null,null,null,null,{"$f":"IF(ROWS($W$20:W25)<=$X$11,INDEX($C$3:$C$60,_xlfn.AGGREGATE(15,3,($B$3:$B$60=$W$14)/($B$3:$B$60=$W$14)*(ROW($B$3:$B$60)-ROW($B$2)),ROWS($W$20:W25))),\"\")","v":""}]
[null,"Warehouse","3. Current Building Heating Source & Rate",3,null,{"$f":"IF(ROWS($F$20:F26)<=$G$11,INDEX($C$3:$C$60,_xlfn.AGGREGATE(15,3,($B$3:$B$60=$F$14)/($B$3:$B$60=$F$14)*(ROW($B$3:$B$60)-ROW($B$2)),ROWS($F$20:F26))),\"\")","v":""},null,null,{"$f":"IF(ROWS($I$20:I26)<=$J$11,INDEX($C$3:$C$60,_xlfn.AGGREGATE(15,3,($B$3:$B$60=$I$14)/($B$3:$B$60=$I$14)*(ROW($B$3:$B$60)-ROW($B$2)),ROWS($I$20:I26))),\"\")","v":""},null,null,null,null,null,null,null,null,null,null,null,null,null,{"$f":"IF(ROWS($W$20:W26)<=$X$11,INDEX($C$3:$C$60,_xlfn.AGGREGATE(15,3,($B$3:$B$60=$W$14)/($B$3:$B$60=$W$14)*(ROW($B$3:$B$60)-ROW($B$2)),ROWS($W$20:W26))),\"\")","v":""}]
[null,"Warehouse","4. Building Air-Conditioned Area (m²)",4,null,{"$f":"IF(ROWS($F$20:F27)<=$G$11,INDEX($C$3:$C$60,_xlfn.AGGREGATE(15,3,($B$3:$B$60=$F$14)/($B$3:$B$60=$F$14)*(ROW($B$3:$B$60)-ROW($B$2)),ROWS($F$20:F27))),\"\")","v":""},null,null,{"$f":"IF(ROWS($I$20:I27)<=$J$11,INDEX($C$3:$C$60,_xlfn.AGGREGATE(15,3,($B$3:$B$60=$I$14)/($B$3:$B$60=$I$14)*(ROW($B$3:$B$60)-ROW($B$2)),ROWS($I$20:I27))),\"\")","v":""},null,null,null,null,"Building Type 1:","=IF(I60=Ref!O27,Ref!O28:O29,IF(I60=Ref!P27,Ref!P28:P29,IF(I60=Ref!Q27,Ref!Q28:Q29,\"\")))",null,null,null,null,null,null,null,{"$f":"IF(ROWS($W$20:W27)<=$X$11,INDEX($C$3:$C$60,_xlfn.AGGREGATE(15,3,($B$3:$B$60=$W$14)/($B$3:$B$60=$W$14)*(ROW($B$3:$B$60)-ROW($B$2)),ROWS($W$20:W27))),\"\")","v":""}]
[null,"Warehouse","5. Electrification Measure (EM) to be Installed",5,null,{"$f":"IF(ROWS($F$20:F28)<=$G$11,INDEX($C$3:$C$60,_xlfn.AGGREGATE(15,3,($B$3:$B$60=$F$14)/($B$3:$B$60=$F$14)*(ROW($B$3:$B$60)-ROW($B$2)),ROWS($F$20:F28))),\"\")","v":""},null,null,{"$f":"IF(ROWS($I$20:I28)<=$J$11,INDEX($C$3:$C$60,_xlfn.AGGREGATE(15,3,($B$3:$B$60=$I$14)/($B$3:$B$60=$I$14)*(ROW($B$3:$B$60)-ROW($B$2)),ROWS($I$20:I28))),\"\")","v":""},null,null,null,null,"Building Type 2:","=IF(I75=Ref!O27,Ref!O28:O29,IF(I75=Ref!P34,Ref!P28:P29,IF(I75=Ref!Q27,Ref!Q28:Q29,\"\")))",null,null,null,null,null,null,null,{"$f":"IF(ROWS($W$20:W28)<=$X$11,INDEX($C$3:$C$60,_xlfn.AGGREGATE(15,3,($B$3:$B$60=$W$14)/($B$3:$B$60=$W$14)*(ROW($B$3:$B$60)-ROW($B$2)),ROWS($W$20:W28))),\"\")","v":""}]
[null,"Warehouse","6. Total number of existing gas RTU units",6,null,{"$f":"IF(ROWS($F$20:F29)<=$G$11,INDEX($C$3:$C$60,_xlfn.AGGREGATE(15,3,($B$3:$B$60=$F$14)/($B$3:$B$60=$F$14)*(ROW($B$3:$B$60)-ROW($B$2)),ROWS($F$20:F29))),\"\")","v":""},null,null,{"$f":"IF(ROWS($I$20:I29)<=$J$11,INDEX($C$3:$C$60,_xlfn.AGGREGATE(15,3,($B$3:$B$60=$I$14)/($B$3:$B$60=$I$14)*(ROW($B$3:$B$60)-ROW($B$2)),ROWS($I$20:I29))),\"\")","v":""},null,null,null,{"$f":"COUNTA(OFFSET(Ref!$O$27,1,MATCH($L28,Ref!$O$27:$Q$27,0)-1,10))","v":8},null,"6. Occupancy Hours",null,null,null,null,null,null,null,{"$f":"IF(ROWS($W$20:W29)<=$X$11,INDEX($C$3:$C$60,_xlfn.AGGREGATE(15,3,($B$3:$B$60=$W$14)/($B$3:$B$60=$W$14)*(ROW($B$3:$B$60)-ROW($B$2)),ROWS($W$20:W29))),\"\")","v":""}]
[null,"Warehouse","7. Number of existing gas RTU to be replaced",7,null,{"$f":"IF(ROWS($F$20:F30)<=$G$11,INDEX($C$3:$C$60,_xlfn.AGGREGATE(15,3,($B$3:$B$60=$F$14)/($B$3:$B$60=$F$14)*(ROW($B$3:$B$60)-ROW($B$2)),ROWS($F$20:F30))),\"\")","v":""},null,null,{"$f":"IF(ROWS($I$20:I30)<=$J$11,INDEX($C$3:$C$60,_xlfn.AGGREGATE(15,3,($B$3:$B$60=$I$14)/($B$3:$B$60=$I$14)*(ROW($B$3:$B$60)-ROW($B$2)),ROWS($I$20:I30))),\"\")","v":""},null,null,"Building Type","Occupancy Hours",null,"Small Office","Strip Mall Retail","School Gymnasiums",null,null,null,null,null,{"$f":"IF(ROWS($W$20:W30)<=$X$11,INDEX($C$3:$C$60,_xlfn.AGGREGATE(15,3,($B$3:$B$60=$W$14)/($B$3:$B$60=$W$14)*(ROW($B$3:$B$60)-ROW($B$2)),ROWS($W$20:W30))),\"\")","v":""}]
[null,"Restaurant-Food Service","1. BC Hydro Rate",1,null,null,null,null,null,null,null,"Small Office",null,null,"Regular (up to 100 hours weekly)","Regular (over 70 hours weekly)","Regular (up to 70 hours weekly)",null,null,null,null,null,{"$f":"IF(ROWS($W$20:W31)<=$X$11,INDEX($C$3:$C$60,_xlfn.AGGREGATE(15,3,($B$3:$B$60=$I$14)/($B$3:$B$60=$I$14)*(ROW($B$3:$B$60)-ROW($B$2)),ROWS($W$20:W31))),\"\")","v":""}]
[null,"Restaurant-Food Service","2. Building Location",2,null,null,null,null,null,null,null,null,null,null,"Extended (over 100 hours weekly)","Reduced (up to 70 hours weekly)","Extended (over 70 hours weekly)"]
[null,"Restaurant-Food Service","3. Current Building Heating Source & Rate",3]
[null,"Restaurant-Food Service","4. Building Air-Conditioned Area (m²)",4,null,null,null,null,null,null,null,null,null,null,null,null,null,null,null,null,null,null,"Building Type 4"]
[null,"Restaurant-Food Service","5. Electrification Measure (EM) to be Installed",5,null,null,null,null,null,null,null,null,null,"Building Type 1:","=IF(I59=Ref!O35,Ref!O36:O38,IF(I59=Ref!P35,Ref!P36:P38,\"\"))"]
[null,"Restaurant-Food Service","6. Dining Air-Conditioned Area (m²)",6,null,false,null,null,null,null,null,null,null,"Building Type 2:","=IF(I74=Ref!O35,Ref!O36:O38,IF(I74=Ref!P35,Ref!P36:P38,\"\"))",null,null,null,null,null,null,null,"Small Office"]
[null,"Restaurant-Food Service","7. Kitchen Air-Conditioned Area (m²)",7,null,null,null,null,null,null,null,null,null,null,"7. Building Age",null,null,null,null,null,null,null,"Strip Mall Retail"]
[null,"Restaurant-Food Service","8. Total number of existing dining gas RTU units",8,null,null,null,null,null,null,null,null,null,null,"Small Office","Strip Mall Retail",null,null,null,null,null,null,"Warehouse"]
[null,"Restaurant-Food Service","9. Total number of existing kitchen gas RTU units",9,null,null,null,null,null,null,null,null,null,null,"Built before 1980","Built before 1980",null,null,null,null,null,null,"Restaurant-Food Service"]
[null,"Restaurant-Food Service","10. Number of existing dining gas RTU to be replaced",10,null,"Who is completing the Application form",null,null,"Who is signing the Terms and Agreements",null,null,null,null,null,"Built between 1980 and 2008","Built between 1980 and 2008",null,null,null,null,null,null,"Multi-Unit Residential Building"]
[null,"Restaurant-Food Service","11. Number of existing kitchen gas RTU to be replaced",11,null,null,null,null,null,null,null,null,null,null,"Built after 2008","Built after 2008",null,null,null,null,null,null,"School Gymnasiums",{"$f":"COUNTIF($B$3:$B$60,$W$41)","v":0}]
[null,"Multi-Unit Residential Building","1. BC Hydro Rate",1,null,"Property Manager",null,null,"Property Manager",null,null,null,null,null,null,null,null,null,null,null,null,null,"Stand Alone Retail"]
[null,"Multi-Unit Residential Building","2. Building Location",2,null,"Customer",null,null,"Customer"]
[null,"Multi-Unit Residential Building","3. Current Building Heating Source & Rate",3,null,"Consultant",null,null,"Consultant",null,null,null,{"$f":"COUNTA(OFFSET(#REF!,1,MATCH($L43,#REF!,0)-1,10))","v":1},null,null,null,null,null,null,null,null,null,{"$f":"Application!I105","v":0}]
[null,"Multi-Unit Residential Building","4. Total Number of Residential Suites",4,null,"Contractor",null,null,"Contractor",null,null,"Building Type","Building Age"]
[null,"Multi-Unit Residential Building","5. Electrification Measure (EM) to be Installed",5,null,"Tenant",null,null,"Tenant",null,null,"Strip Mall Retail (Non-food 1 storey commercial retail up to 25,000 ft2 or 2323 m²)",null,null,null,null,null,null,null,null,null,null,"Results"]
[null,"Multi-Unit Residential Building","6. Total number of existing gas RTU units",6,null,null,null,null,null,null,null,null,null,null,null,null,null,null,null,null,null,null,{"$f":"IF(ROWS($W$47:W47)<=$X$38,INDEX($C$3:$C$60,_xlfn.AGGREGATE(15,3,($B$3:$B$60=$W$41)/($B$3:$B$60=$W$41)*(ROW($B$3:$B$60)-ROW($B$2)),ROWS($W$47:W47))),\"\")","v":""}]
[null,"Multi-Unit Residential Building","7. Number of existing gas RTU to be replaced",7,null,null,null,null,null,null,null,null,null,null,null,null,null,null,null,null,null,null,{"$f":"IF(ROWS($W$47:W48)<=$X$38,INDEX($C$3:$C$60,_xlfn.AGGREGATE(15,3,($B$3:$B$60=$W$41)/($B$3:$B$60=$W$41)*(ROW($B$3:$B$60)-ROW($B$2)),ROWS($W$47:W48))),\"\")","v":""}]
[null,"School Gymnasiums","1. BC Hydro Rate",1,null,null,null,null,null,null,null,null,null,null,null,null,null,null,null,null,null,null,{"$f":"IF(ROWS($W$47:W49)<=$X$38,INDEX($C$3:$C$60,_xlfn.AGGREGATE(15,3,($B$3:$B$60=$W$41)/($B$3:$B$60=$W$41)*(ROW($B$3:$B$60)-ROW($B$2)),ROWS($W$47:W49))),\"\")","v":""}]
[null,"School Gymnasiums","2. Building Location",2,null,"Commercial Express Equipment",null,null,null,null,null,null,null,null,null,null,null,null,null,null,null,null,{"$f":"IF(ROWS($W$47:W50)<=$X$38,INDEX($C$3:$C$60,_xlfn.AGGREGATE(15,3,($B$3:$B$60=$W$41)/($B$3:$B$60=$W$41)*(ROW($B$3:$B$60)-ROW($B$2)),ROWS($W$47:W50))),\"\")","v":""}]
[null,"School Gymnasiums","3. Current Building Heating Source & Rate",3,null,null,null,null,null,null,null,null,null,null,null,null,null,null,null,null,null,null,{"$f":"IF(ROWS($W$47:W51)<=$X$38,INDEX($C$3:$C$60,_xlfn.AGGREGATE(15,3,($B$3:$B$60=$W$41)/($B$3:$B$60=$W$41)*(ROW($B$3:$B$60)-ROW($B$2)),ROWS($W$47:W51))),\"\")","v":""}]
[null,"School Gymnasiums","4. Building Air-Conditioned Area (m²)",4,null,"Air-to-Water Heat Pump Water Heater",null,null,null,null,null,null,null,null,null,null,null,null,null,null,null,null,{"$f":"IF(ROWS($W$47:W52)<=$X$38,INDEX($C$3:$C$60,_xlfn.AGGREGATE(15,3,($B$3:$B$60=$W$41)/($B$3:$B$60=$W$41)*(ROW($B$3:$B$60)-ROW($B$2)),ROWS($W$47:W52))),\"\")","v":""}]
[null,"School Gymnasiums","5. Electrification Measure (EM) to be Installed",5,null,"Air-to-Air Rooftop Heat Pump",null,null,null,null,null,null,null,null,null,null,null,null,null,null,null,null,{"$f":"IF(ROWS($W$47:W53)<=$X$38,INDEX($C$3:$C$60,_xlfn.AGGREGATE(15,3,($B$3:$B$60=$W$41)/($B$3:$B$60=$W$41)*(ROW($B$3:$B$60)-ROW($B$2)),ROWS($W$47:W53))),\"\")","v":""}]
[null,"School Gymnasiums","6. Occupancy Hours ",6,null,"Air to Air Mini-split Heat Pump ",null,null,null,null,null,null,null,null,null,null,null,null,null,null,null,null,{"$f":"IF(ROWS($W$47:W54)<=$X$38,INDEX($C$3:$C$60,_xlfn.AGGREGATE(15,3,($B$3:$B$60=$W$41)/($B$3:$B$60=$W$41)*(ROW($B$3:$B$60)-ROW($B$2)),ROWS($W$47:W54))),\"\")","v":""}]
[null,"School Gymnasiums","7. Total number of existing gas RTU units",7,null,"Sewage Heat Recovery Heat Pump",null,null,null,null,null,null,null,null,null,null,null,null,null,null,null,null,{"$f":"IF(ROWS($W$47:W55)<=$X$38,INDEX($C$3:$C$60,_xlfn.AGGREGATE(15,3,($B$3:$B$60=$W$41)/($B$3:$B$60=$W$41)*(ROW($B$3:$B$60)-ROW($B$2)),ROWS($W$47:W55))),\"\")","v":""}]
[null,"School Gymnasiums","8. Number of existing gas RTU to be replaced",8,null,"High-efficiency (>75%) Heat Recovery Ventilation System ",null,null,null,null,null,null,null,null,null,null,null,null,null,null,null,null,{"$f":"IF(ROWS($W$47:W56)<=$X$38,INDEX($C$3:$C$60,_xlfn.AGGREGATE(15,3,($B$3:$B$60=$W$41)/($B$3:$B$60=$W$41)*(ROW($B$3:$B$60)-ROW($B$2)),ROWS($W$47:W56))),\"\")","v":""}]
[null,"Stand Alone Retail","1. BC Hydro Rate",1,null,"Air Source Variable Refrigerant Flow System ",null,null,null,null,null,null,null,null,null,null,null,null,null,null,null,null,{"$f":"IF(ROWS($W$47:W57)<=$X$38,INDEX($C$3:$C$60,_xlfn.AGGREGATE(15,3,($B$3:$B$60=$W$41)/($B$3:$B$60=$W$41)*(ROW($B$3:$B$60)-ROW($B$2)),ROWS($W$47:W57))),\"\")","v":""}]
[null,"Stand Alone Retail","2. Building Location",2,null,"Electrical Induction Cooking Equipment ",null,null,null,null,null,null,null,null,"5. Electrification Measure (EM) to be Installed",null,null,null,null,null,null,null,{"$f":"IF(ROWS($W$47:W58)<=$X$38,INDEX($C$3:$C$60,_xlfn.AGGREGATE(15,3,($B$3:$B$60=$W$41)/($B$3:$B$60=$W$41)*(ROW($B$3:$B$60)-ROW($B$2)),ROWS($W$47:W58))),\"\")","v":""}]
[null,"Stand Alone Retail","3. Current Building Heating Source & Rate",3,null,null,null,null,null,null,null,null,null,null,"Small Office","Strip Mall Retail","Warehouse","Restaurant-Food Service","Multi-Unit Residential Building","School Gymnasiums","Stand Alone Retail"]
[null,"Stand Alone Retail","4. Building Air-Conditioned Area (m²)",4,null,"Building Heating Source",null,null,null,null,null,null,null,null,"Rooftop Air-to-Air Heat Pump Mixed Air Unit with Gas Backup","Rooftop Air-to-Air Heat Pump Mixed Air Unit with Gas Backup","Rooftop Air-to-Air Heat Pump Mixed Air Unit with Gas Backup","Rooftop Air-to-Air Heat Pump Mixed Air Unit with Gas Backup","Rooftop Air-to-Air Heat Pump Mixed Air Unit with Gas Backup","Rooftop Air-to-Air Heat Pump Mixed Air Unit with Gas Backup","Rooftop Air-to-Air Heat Pump Make Up Air Unit with Gas Backup"]
[null,"Stand Alone Retail","5. Electrification Measure (EM) to be Installed",5,null,null,null,null,null,null,null,null,null,null,"Rooftop Air-to-Air Heat Pump Mixed Air Unit with Electric Backup","Rooftop Air-to-Air Heat Pump Mixed Air Unit with Electric Backup","Rooftop Air-to-Air Heat Pump Mixed Air Unit with Electric Backup","Rooftop Air-to-Air Heat Pump Make Up Air Unit with Gas Backup","Rooftop Air-to-Air Heat Pump Mixed Air Unit with Electric Backup","Rooftop Air-to-Air Heat Pump Mixed Air Unit with Gas Backup and High-efficiency (>75%) HRV","Rooftop Air-to-Air Heat Pump Make Up Air Unit with Electric Backup"]
[null,"Stand Alone Retail","6. Total number of existing gas RTU units",6,null,"Small Commercial Rate-Natural Gas",null,null,null,null,null,null,null,null,"Air Source VRF Distributed Heat Pumps with High-efficiency (>75%) HRV","Air-to-Air Heat Pump (ductless or mini-split) with High-efficiency (>75%) HRV",null,"Rooftop Air-to-Air Heat Pump Mixed Air Unit with Electric Backup",null,null,"Air Source VRF Distributed Heat Pumps with High-efficiency (>75%) HRV"]
[null,"Stand Alone Retail","7. Number of existing gas RTU to be replaced",7,null,"Large Commercial Rate– Natural Gas",null,null,null,null,null,null,null,null,null,null,null,"Rooftop Air-to-Air Heat Pump Make Up Air Unit with Electric Backup"]
[null,null,null,null,null,"Residential Rate- Natural Gas ",null,null,null,null,null,null,null,null,null,null,null,"Air-to-Water CO2 Heat Pump Water Heater"]
[null,null,null,null,null,"Propane",null,null,null,null,null,null,null,null,null,null,null,"Sewage Heat Recovery Heat Pump"]
[null,null,null,null,null,"Diesel",null,null,null,null,null,null,null,null,null,null,null,"Electrify Food Preparation Equipment"]
[]
[null,null,null,null,null,"Consultant/Contractor"]
[]
[null,null,null,null,null,"Contractor"]
[null,null,null,null,null,"Consultant"]
[null,null,null,null,null,"Both"]
[]
[null,null,null,null,null,"BC Hydro Rate"]
[]
[null,null,null,null,null,"Commercial SGS"]
[null,null,null,null,null,"Commercial MGS"]
[null,null,null,null,null,"Commercial LGS"]
[null,null,null,null,null,"Industrial SGS"]
[null,null,null,null,null,"Industrial MGS"]
[null,null,null,null,null,"Industrial LGS"]
[null,null,null,null,null,"TSR -Tier 1"]
[null,null,null,null,null,"TSR -Tier 2"]
[null,null,null,null,null,"TSR - Blend"]
[null,null,null,null,null,"RIB -Tier 1"]
[null,null,null,null,null,"RIB -Tier 2"]
[null,null,null,null,null,"RIB Average - Flat"]
[null,null,null,null,null,"Shore Power"]

{"sheet":"Ref 2","index":4,"n_rows":111,"n_cols":2,"rows_kept":111,"cut":false,"hidden":true,"merged":[[89,0,95,0],[96,0,103,0],[104,0,110,0],[50,0,50,1],[0,0,0,2],[53,0,61,0],[62,0,70,0],[71,0,77,0],[78,0,88,0],[45,0,47,0],[28,0,29,0],[3,0,4,0],[33,0,34,0],[35,0,36,0],[37,0,38,0],[42,0,44,0],[25,0,27,0],[8,0,10,0],[11,0,13,0],[14,0,15,0],[16,0,22,0],[23,0,24,0]]}
["CleanBC Commercial Express Program - Building Type Applicable Questions with Drop-Down Menus"]
[]
["Building Type","Building Heating Source"]
["All","Natural Gas"]
[null,"Propane"]
[]
[]
["Building Type","Electrification Measure (EM) to be Installed"]
["Office","Rooftop Air-to-Air Heat Pump Mixed Air Unit with Gas Backup"]
[null,"Rooftop Air-to-Air Heat Pump Mixed Air Unit with Electric Backup"]
[null,"Air Source VRF Distributed Heat Pumps with High-efficiency (>75%) HRV"]
["Strip Mall Retail","Rooftop Air-to-Air Heat Pump Mixed Air Unit with Gas Backup"]
[null,"Rooftop Air-to-Air Heat Pump Mixed Air Unit with Electric Backup"]
[null,"Air-to-Air Heat Pump (ductless or mini-split) with High-efficiency (>75%) HRV"]
["Warehouse","Rooftop Air-to-Air Heat Pump Mixed Air Unit with Gas Backup"]
[null,"Rooftop Air-to-Air Heat Pump Mixed Air Unit with Electric Backup"]
["Restaurant","Rooftop Air-to-Air Heat Pump Mixed Air Unit with Gas Backup"]
[null,"Rooftop Air-to-Air Heat Pump Make Up Air Unit with Gas Backup"]
[null,"Rooftop Air-to-Air Heat Pump Mixed Air Unit with Electric Backup"]
[null,"Rooftop Air-to-Air Heat Pump Make Up Air Unit with Electric Backup"]
[null,"Air-to-Water CO2 Heat Pump Water Heater"]
[null,"Sewage Heat Recovery Heat Pump"]
[null,"Electrify Food Preparation Equipment"]
["School Gym","Rooftop Air-to-Air Heat Pump Mixed Air Unit with Gas Backup"]
[null,"Rooftop Air-to-Air Heat Pump Mixed Air Unit with Gas Backup and High-efficiency (>75%) HRV"]
["Big Retail","Rooftop Air-to-Air Heat Pump Mixed Air Unit with Gas Backup"]
[null,"Rooftop Air-to-Air Heat Pump Mixed Air Unit with Electric Backup"]
[null,"Air Source VRF Distributed Heat Pumps with High-efficiency (>75%) HRV"]
["MURB","Rooftop Air-to-Air Heat Pump Make Up Air Unit with Gas Backup"]
[null,"Rooftop Air-to-Air Heat Pump Make Up Air Unit with Electric Backup"]
[]
[]
["Building Type","Occupancy Hours"]
["Office","Regular (up to 100 hours weekly)"]
[null,"Extended (over 100 hours weekly)"]
["Strip Mall Retail","Regular (over 70 hours weekly)"]
[null,"Reduced (up to 70 hours weekly)"]
["School Gym","Regular (up to 70 hours weekly)"]
[null,"Extended (over 70 hours weekly)"]
[]
[]
["Building Type","Building Age"]
["Office","Built before 1980"]
[null,"Built between 1980 and 2008"]
[null,"Built after 2008"]
["Strip Mall Retail","Built before 1980"]
[null,"Built between 1980 and 2008"]
[null,"Built after 2008"]
[]
[]
["CleanBC Commercial Express Program - Building Type Related Project Application Questions "]
[]
["Building Type","Project Application Questions"]
["Office","1. BC Hydro Rate"]
[null,"2. Building Location"]
[null,"3. Building Heating Source"]
[null,"4. Building Air-Conditioned Area (m²)"]
[null,"5. Electrification Measure (EM) to be Installed"]
[null,"6. Occupancy Hours "]
[null,"7. Building Age"]
[null,"8. Total number of existing gas RTU units"]
[null,"9. Number of existing gas RTU to be replaced"]
["Strip Mall Retail","1. BC Hydro Rate"]
[null,"2. Building Location"]
[null,"3. Building Heating Source"]
[null,"4. Building Air-Conditioned Area (m²)"]
[null,"5. Electrification Measure (EM) to be Installed"]
[null,"6. Occupancy Hours "]
[null,"7. Building Age"]
[null,"8. Total number of existing gas RTU units"]
[null,"9. Number of existing gas RTU to be replaced"]
["Warehouse","1. BC Hydro Rate"]
[null,"2. Building Location"]
[null,"3. Building Heating Source"]
[null,"4. Building Air-Conditioned Area (m²)"]
[null,"5. Electrification Measure (EM) to be Installed"]
[null,"6. Total number of existing gas RTU units"]
[null,"7. Number of existing gas RTU to be replaced"]
["Restaurant","1. BC Hydro Rate"]
[null,"2. Building Location"]
[null,"3. Building Heating Source"]
[null,"4. Building Air-Conditioned Area (m²)"]
[null,"5. Electrification Measure (EM) to be Installed"]
[null,"6. Dining Air-Conditioned Area (m²)"]
[null,"7. Kitchen Air-Conditioned Area (m²)"]
[null,"8. Total number of existing dining gas RTU units"]
[null,"9. Total number of existing kitchen gas RTU units"]
[null,"10. Number of existing dining gas RTU to be replaced"]
[null,"11. Number of existing kitchen gas RTU to be replaced"]
["MURB","1. BC Hydro Rate"]
[null,"2. Building Location"]
[null,"3. Building Heating Source"]
[null,"4. Total Number of Residential Suites"]
[null,"5. Electrification Measure (EM) to be Installed"]
[null,"6. Total number of existing gas RTU units"]
[null,"7. Number of existing gas RTU to be replaced"]
["School Gym","1. BC Hydro Rate"]
[null,"2. Building Location"]
[null,"3. Building Heating Source"]
[null,"4. Building Air-Conditioned Area (m²)"]
[null,"5. Electrification Measure (EM) to be Installed"]
[null,"6. Occupancy Hours "]
[null,"7. Total number of existing gas RTU units"]
[null,"8. Number of existing gas RTU to be replaced"]
["Standalone Retail","1. BC Hydro Rate"]
[null,"2. Building Location"]
[null,"3. Building Heating Source"]
[null,"4. Building Air-Conditioned Area (m²)"]
[null,"5. Electrification Measure (EM) to be Installed"]
[null,"6. Total number of existing gas RTU units"]
[null,"7. Number of existing gas RTU to be replaced"]

{"sheet":"Tenant Waiver Form","index":5,"n_rows":45,"n_cols":30,"rows_kept":45,"cut":false,"hidden":false,"merged":[[1,1,3,26],[15,19,15,25],[15,2,15,18],[19,7,19,25],[35,5,35,16],[26,21,26,25],[20,8,20,25],[17,2,17,26],[28,2,31,26],[32,2,32,10],[24,9,24,12],[22,5,22,12],[34,5,34,17],[4,2,14,25],[22,19,22,25],[24,19,24,25],[40,17,40,25],[43,17,43,25],[43,4,43,13],[40,4,40,13],[26,9,26,12],[38,10,38,21],[37,10,37,21]]}
[]
[null,"\nCleanBC Commercial Express PROGRAM\nACCOUNT HOLDER WAIVER FORM\n"]
[]
[]
[null,null,"This form is required to allow an incentive payment from BC Hydro, on behalf of the Province of British Columbia, to be made to a tenant that is not recognized as the legal owner of a BC Hydro meter.  Additionally, a property manager can use this form if they are applying on behalf of the strata and the meter is in the strata's name and payment is going to the property manager. In both cases,  the tenant and/or the property manager is referred to as the “Applicant”. This form allows the Applicant  to use the owner/landlord’s meter as a means to apply for rebates.  By having both the tenant and owner/landlord sign this form, the owner/landlord gives consent to the tenant to use their BC Hydro account number and passes all terms and conditions of the CleanBC Commercial Express Incentive Program to the tenant. \n\n1)     Instructions\n         1.     Please review and complete this waiver form.\n \nTenant Information\n\n \n"]
[]
[]
[]
[]
[]
[]
[]
[]
[]
[]
[null,null,"Name of Applicant (to whom the CleanBC Commercial Express Incentive will be issued to):  "]
[]
[null,null,"The Applicant wishes to apply to the CleanBC Commercial Express Incentive Program to install eligible equipment at the following business/property:"]
[]
[null,null,"Business Address:"]
[null,null,null,null,null,null,null,null,"(Street/City/Postal Code)"]
[]
[null,null,"Tenant Name:",null,null,null,null,null,null,null,null,null,null,null,"Landlord/Owner Name:"]
[null,null,null,null,null,null,null,null,null,null,null,null,null,null,null,null,null,null,null,null,null,null,null,null,null,null,null,null,null,"`"]
[null,null,"Tenant Phone Number:",null,null,null,null,null,null,null,null,null,null,null,"Landlord /Owner Email:  "]
[]
[null,null,"Tenant Phone Number:",null,null,null,null,null,null,null,null,null,null,null,"Landlord /Owner Phone Number:  "]
[]
[null,null,"Responsibility of Applicant \nA. The Applicant agrees to pay for all CleanBC Commercial Express equipment and labour costs related to installation and application \nB.  The incentive will be payable to the Applicant \nC. The Applicant is subject to the terms and conditions of the CleanBC Commercial Express Program\n"]
[]
[]
[]
[null,null,"Responsibility of Owner/Landlord"]
[]
[null,null,null,null,"I/We,",null,null,null,null,null,null,null,null,null,null,null,null,null,"give consent to the Applicant  to use the"]
[null,null,null,null,null,"(Owner/Landlord Company Legal Name)"]
[]
[null,null,null,null,null,"BC Hydro Account No.",null,null,null,null,null,null,null,null,null,null,null,null,null,null,null,null,"solely for this purpose."]
[null,null,null,null,null,null,null,null,null,null,"(Owner/Landlord Business Account Number)"]
[]
[]
[null,null,"Applicant Name ",null,null,null,null,null,null,null,null,null,null,null,null,null,"Date"]
[]
[]
[null,null,"Owner/Landlord Name",null,null,null,null,null,null,null,null,null,null,null,null,null,"Date"]